[Event "Titled Tuesday Blitz April 4 Late 2023"]
[White "Barria Santos, Jose Guilherme"]
[Black "marik_spb"]
[WhiteFideId "1939300"]
[WhiteElo "2266"]
[BlackElo "2404"]
[Result "0-1"]
[Round "05"]
[TimeControl "180+2"]
[Date "2023.04.04"]
[WhiteClock "0:00:23"]
[BlackClock "0:00:15"]

1. e4 {[%clk 0:02:58]}  c6 {[%clk 0:02:57]} 2. d4 {[%clk 0:02:57]}  d5 {[%clk 0:02:50]} 3. f3 {[%clk 0:02:54]}  dxe4 {[%clk 0:02:49]} 4. fxe4 {[%clk 0:02:55]}  e5 {[%clk 0:02:50]} 5. Nf3 {[%clk 0:02:55]}  Be6 {[%clk 0:02:47]} 6. Nxe5 {[%clk 0:02:46]}  Qh4+ {[%clk 0:02:46]} 7. Kd2 {[%clk 0:02:28]}  Nf6 {[%clk 0:02:40]} 8. Nc3 {[%clk 0:02:26]}  Nxe4+ {[%clk 0:02:36]} 9. Nxe4 {[%clk 0:02:25]}  Qxe4 {[%clk 0:02:37]} 10. c3 {[%clk 0:02:23]}  g6 {[%clk 0:02:23]} 11. Bd3 {[%clk 0:02:23]}  Qxg2+ {[%clk 0:02:21]} 12. Qe2 {[%clk 0:02:23]}  Qxh1 {[%clk 0:02:11]} 13. Bc4 {[%clk 0:02:15]}  Nd7 {[%clk 0:01:54]} 14. Nxf7 {[%clk 0:02:08]}  Be7 {[%clk 0:01:31]} 15. Bxe6 {[%clk 0:01:58]}  Rf8 {[%clk 0:01:28]} 16. Nd6+ {[%clk 0:01:22]}  Kd8 {[%clk 0:01:16]} 17. Nxb7+ {[%clk 0:01:22]}  Kc7 {[%clk 0:01:15]} 18. Na5 {[%clk 0:01:13]}  Qg1 {[%clk 0:00:57]} 19. Kc2 {[%clk 0:01:08]}  Qf2 {[%clk 0:00:47]} 20. Qxf2 {[%clk 0:00:56]}  Rxf2+ {[%clk 0:00:48]} 21. Kd3 {[%clk 0:00:51]}  Bd6 {[%clk 0:00:47]} 22. Be3 {[%clk 0:00:44]}  Rxb2 {[%clk 0:00:45]} 23. Nc4 {[%clk 0:00:44]}  Rg2 {[%clk 0:00:37]} 24. Re1 {[%clk 0:00:40]}  Bxh2 {[%clk 0:00:35]} 25. a4 {[%clk 0:00:34]}  Re8 {[%clk 0:00:32]} 26. Bh3 {[%clk 0:00:29]}  Rg3 {[%clk 0:00:30]} 27. Bxd7 {[%clk 0:00:28]}  Kxd7 {[%clk 0:00:29]} 28. Kd2 {[%clk 0:00:29]}  Rg2+ {[%clk 0:00:25]} 29. Kd3 {[%clk 0:00:29]}  Bf4 {[%clk 0:00:18]} 30. Rf1 {[%clk 0:00:23]}  Bxe3 {[%clk 0:00:17]} 31. Nxe3 {[%clk 0:00:23]}  Rg3 {[%clk 0:00:18]} 32. Rf7+ {[%clk 0:00:23]}  Re7 {[%clk 0:00:17]} 33. Rxe7+ {[%clk 0:00:22]}  Kxe7 {[%clk 0:00:18]} 34. Ke4 {[%clk 0:00:22]}  h5 {[%clk 0:00:18]} 35. c4 {[%clk 0:00:23]}  h4 {[%clk 0:00:16]} 36. d5 {[%clk 0:00:23]}  Rxe3+ {[%clk 0:00:15]} 0-1


[Site "https://www.chess.com"]

[Event "Titled Tuesday Blitz April 4 Late 2023"]
[White "Senft, Sean"]
[Black "Kornyukov, Alexey"]
[WhiteFideId "2044960"]
[BlackFideId "4150457"]
[WhiteElo "1989"]
[BlackElo "2352"]
[Result "1-0"]
[Round "05"]
[TimeControl "180+2"]
[Date "2023.04.04"]
[WhiteClock "0:00:22"]
[BlackClock "0:00:01"]

1. d4 {[%clk 0:02:58]}  d5 {[%clk 0:02:58]} 2. c4 {[%clk 0:02:59]}  e6 {[%clk 0:02:58]} 3. Nc3 {[%clk 0:02:59]}  c6 {[%clk 0:02:58]} 4. cxd5 {[%clk 0:02:59]}  exd5 {[%clk 0:02:59]} 5. Nf3 {[%clk 0:03:00]}  Bd6 {[%clk 0:02:59]} 6. Bg5 {[%clk 0:03:00]}  f6 {[%clk 0:02:58]} 7. Bh4 {[%clk 0:03:01]}  Ne7 {[%clk 0:02:59]} 8. e3 {[%clk 0:03:01]}  Qb6 {[%clk 0:02:57]} 9. Qc2 {[%clk 0:03:01]}  Bf5 {[%clk 0:02:57]} 10. Qb3 {[%clk 0:03:00]}  O-O {[%clk 0:02:46]} 11. Be2 {[%clk 0:02:58]}  Nd7 {[%clk 0:02:41]} 12. O-O {[%clk 0:02:54]}  Qxb3 {[%clk 0:02:27]} 13. axb3 {[%clk 0:02:54]}  a6 {[%clk 0:02:28]} 14. Bg3 {[%clk 0:02:52]}  Bxg3 {[%clk 0:02:21]} 15. hxg3 {[%clk 0:02:53]}  h6 {[%clk 0:02:17]} 16. Nd2 {[%clk 0:02:52]}  Rae8 {[%clk 0:02:11]} 17. b4 {[%clk 0:02:53]}  Nc8 {[%clk 0:02:10]} 18. Nb3 {[%clk 0:02:52]}  Nd6 {[%clk 0:02:08]} 19. Nc5 {[%clk 0:02:51]}  Re7 {[%clk 0:02:05]} 20. Rfc1 {[%clk 0:02:38]}  g5 {[%clk 0:01:54]} 21. g4 {[%clk 0:02:13]}  Bg6 {[%clk 0:01:50]} 22. Bf3 {[%clk 0:02:11]}  f5 {[%clk 0:01:38]} 23. gxf5 {[%clk 0:02:04]}  Bxf5 {[%clk 0:01:36]} 24. Nxd5 {[%clk 0:02:03]}  cxd5 {[%clk 0:01:31]} 25. Bxd5+ {[%clk 0:02:04]}  Kg7 {[%clk 0:01:30]} 26. Nxb7 {[%clk 0:01:54]}  Nf6 {[%clk 0:01:21]} 27. Nxd6 {[%clk 0:01:46]}  Nxd5 {[%clk 0:01:21]} 28. Nxf5+ {[%clk 0:01:05]}  Rxf5 {[%clk 0:01:20]} 29. Rc5 {[%clk 0:01:06]}  g4 {[%clk 0:00:54]} 30. Raa5 {[%clk 0:01:03]}  Ref7 {[%clk 0:00:29]} 31. Rxd5 {[%clk 0:00:43]}  Rxf2 {[%clk 0:00:28]} 32. Ra1 {[%clk 0:00:44]}  g3 {[%clk 0:00:25]} 33. Rh5 {[%clk 0:00:37]}  R7f6 {[%clk 0:00:11]} 34. Rh3 {[%clk 0:00:36]}  Rg6 {[%clk 0:00:11]} 35. Rxg3 {[%clk 0:00:36]}  Rxb2 {[%clk 0:00:10]} 36. Rxg6+ {[%clk 0:00:36]}  Kxg6 {[%clk 0:00:11]} 37. Rxa6+ {[%clk 0:00:36]}  Kg5 {[%clk 0:00:12]} 38. Rb6 {[%clk 0:00:34]}  Kg4 {[%clk 0:00:11]} 39. Rxh6 {[%clk 0:00:32]}  Rxb4 {[%clk 0:00:09]} 40. Rf6 {[%clk 0:00:29]}  Rb2 {[%clk 0:00:08]} 41. Rf2 {[%clk 0:00:28]}  Rb1+ {[%clk 0:00:08]} 42. Kh2 {[%clk 0:00:28]}  Re1 {[%clk 0:00:08]} 43. Rf3 {[%clk 0:00:28]}  Re2 {[%clk 0:00:06]} 44. Rg3+ {[%clk 0:00:26]}  Kh4 {[%clk 0:00:07]} 45. d5 {[%clk 0:00:23]}  Re1 {[%clk 0:00:05]} 46. d6 {[%clk 0:00:20]}  Rd1 {[%clk 0:00:05]} 47. Rg6 {[%clk 0:00:20]}  Kh5 {[%clk 0:00:05]} 48. Re6 {[%clk 0:00:20]}  Kg5 {[%clk 0:00:05]} 49. e4 {[%clk 0:00:20]}  Kf4 {[%clk 0:00:04]} 50. e5 {[%clk 0:00:21]}  Kf5 {[%clk 0:00:03]} 51. Re7 {[%clk 0:00:22]}  Rd4 {[%clk 0:00:03]} 52. Kg3 {[%clk 0:00:22]}  Rd3+ {[%clk 0:00:03]} 53. Kf2 {[%clk 0:00:22]}  Rd2+ {[%clk 0:00:01]} 54. Ke3 {[%clk 0:00:23]}  Rxg2 {[%clk 0:00:01]} 55. d7 {[%clk 0:00:22]} 1-0


[Site "https://www.chess.com"]

[Event "Titled Tuesday Blitz April 4 Late 2023"]
[White "Oliveira, Tiago Batista"]
[Black "Rodriguez Santiago, Jaime"]
[WhiteFideId "2108291"]
[BlackFideId "3100898"]
[WhiteElo "1962"]
[BlackElo "2025"]
[Result "0-1"]
[Round "05"]
[TimeControl "180+2"]
[Date "2023.04.04"]
[WhiteClock "0:00:08"]
[BlackClock "0:00:15"]

1. d4 {[%clk 0:02:58]}  Nf6 {[%clk 0:02:57]} 2. c4 {[%clk 0:02:47]}  e6 {[%clk 0:02:56]} 3. Nf3 {[%clk 0:02:47]}  d5 {[%clk 0:02:54]} 4. g3 {[%clk 0:02:46]}  dxc4 {[%clk 0:02:52]} 5. Bg2 {[%clk 0:02:46]}  c5 {[%clk 0:02:52]} 6. O-O {[%clk 0:02:42]}  Nc6 {[%clk 0:02:50]} 7. Qa4 {[%clk 0:02:35]}  Bd7 {[%clk 0:02:47]} 8. dxc5 {[%clk 0:02:31]}  Ne5 {[%clk 0:02:25]} 9. Qc2 {[%clk 0:02:26]}  Nxf3+ {[%clk 0:02:23]} 10. Bxf3 {[%clk 0:02:26]}  Bxc5 {[%clk 0:02:22]} 11. Bxb7 {[%clk 0:02:23]}  Rb8 {[%clk 0:02:21]} 12. Bg2 {[%clk 0:02:22]}  Qb6 {[%clk 0:02:17]} 13. Nd2 {[%clk 0:02:22]}  c3 {[%clk 0:02:16]} 14. bxc3 {[%clk 0:02:18]}  O-O {[%clk 0:02:14]} 15. Nf3 {[%clk 0:02:08]}  Qa6 {[%clk 0:02:07]} 16. Bg5 {[%clk 0:01:59]}  Ba4 {[%clk 0:01:58]} 17. Qc1 {[%clk 0:01:45]}  Nd5 {[%clk 0:01:55]} 18. Rb1 {[%clk 0:01:32]}  Rxb1 {[%clk 0:01:50]} 19. Qxb1 {[%clk 0:01:32]}  Nxc3 {[%clk 0:01:49]} 20. Qb2 {[%clk 0:01:17]}  Nxe2+ {[%clk 0:01:40]} 21. Kh1 {[%clk 0:01:16]}  h6 {[%clk 0:01:32]} 22. Bd2 {[%clk 0:00:57]}  Bb5 {[%clk 0:01:26]} 23. Rb1 {[%clk 0:00:54]}  Bd3 {[%clk 0:01:21]} 24. Rd1 {[%clk 0:00:50]}  Bxf2 {[%clk 0:01:19]} 25. Bb4 {[%clk 0:00:45]}  Rb8 {[%clk 0:01:05]} 26. Ne5 {[%clk 0:00:45]}  Bc5 {[%clk 0:00:58]} 27. Nxd3 {[%clk 0:00:41]}  Bxb4 {[%clk 0:00:51]} 28. Nxb4 {[%clk 0:00:40]}  Qc4 {[%clk 0:00:51]} 29. Bf1 {[%clk 0:00:17]}  Qe4+ {[%clk 0:00:36]} 30. Bg2 {[%clk 0:00:15]}  Qg4 {[%clk 0:00:24]} 31. a3 {[%clk 0:00:11]}  Nxg3+ {[%clk 0:00:23]} 32. hxg3 {[%clk 0:00:10]}  Qxd1+ {[%clk 0:00:24]} 33. Kh2 {[%clk 0:00:10]}  a5 {[%clk 0:00:23]} 34. Qe5 {[%clk 0:00:10]}  Rd8 {[%clk 0:00:17]} 35. Qxa5 {[%clk 0:00:10]}  Rd2 {[%clk 0:00:16]} 36. Qa8+ {[%clk 0:00:08]}  Kh7 {[%clk 0:00:16]} 37. Qf3 {[%clk 0:00:08]}  Qxf3 {[%clk 0:00:15]} 0-1


[Site "https://www.chess.com"]

[Event "Titled Tuesday Blitz April 4 Late 2023"]
[White "Steenbekkers, Franck"]
[Black "Novikova, Galina"]
[WhiteFideId "1004220"]
[BlackFideId "4157095"]
[WhiteElo "1950"]
[BlackElo "1953"]
[Result "0-1"]
[Round "05"]
[TimeControl "180+2"]
[Date "2023.04.04"]
[WhiteClock "0:00:01"]
[BlackClock "0:00:06"]

1. e4 {[%clk 0:02:59]}  e6 {[%clk 0:02:59]} 2. d4 {[%clk 0:02:58]}  d5 {[%clk 0:03:00]} 3. Nd2 {[%clk 0:02:57]}  Nc6 {[%clk 0:02:59]} 4. Ngf3 {[%clk 0:02:56]}  g5 {[%clk 0:02:59]} 5. Bb5 {[%clk 0:02:44]}  Bd7 {[%clk 0:02:57]} 6. Bxc6 {[%clk 0:02:42]}  Bxc6 {[%clk 0:02:55]} 7. Ne5 {[%clk 0:02:42]}  Qf6 {[%clk 0:02:46]} 8. Nxc6 {[%clk 0:02:26]}  bxc6 {[%clk 0:02:45]} 9. e5 {[%clk 0:02:26]}  Qg6 {[%clk 0:02:42]} 10. Nb3 {[%clk 0:02:20]}  Ne7 {[%clk 0:02:34]} 11. O-O {[%clk 0:02:17]}  Nf5 {[%clk 0:02:34]} 12. f4 {[%clk 0:02:11]}  g4 {[%clk 0:02:33]} 13. Qd3 {[%clk 0:02:02]}  h5 {[%clk 0:02:28]} 14. Qa6 {[%clk 0:02:01]}  Kd7 {[%clk 0:02:27]} 15. Na5 {[%clk 0:02:00]}  Nxd4 {[%clk 0:01:52]} 16. Be3 {[%clk 0:01:53]}  Bc5 {[%clk 0:01:48]} 17. Kh1 {[%clk 0:01:42]}  Rab8 {[%clk 0:01:19]} 18. b4 {[%clk 0:01:04]}  Rb6 {[%clk 0:01:06]} 19. Qxa7 {[%clk 0:01:03]}  Bxb4 {[%clk 0:00:42]} 20. Bxd4 {[%clk 0:01:00]}  c5 {[%clk 0:00:42]} 21. a3 {[%clk 0:00:47]}  Bxa5 {[%clk 0:00:30]} 22. Bxc5 {[%clk 0:00:46]}  Rb5 {[%clk 0:00:24]} 23. c4 {[%clk 0:00:40]}  Bb6 {[%clk 0:00:24]} 24. Qa6 {[%clk 0:00:27]}  Rxc5 {[%clk 0:00:23]} 25. cxd5 {[%clk 0:00:26]}  exd5 {[%clk 0:00:21]} 26. Rac1 {[%clk 0:00:24]}  Qc6 {[%clk 0:00:20]} 27. Rcd1 {[%clk 0:00:19]}  h4 {[%clk 0:00:19]} 28. f5 {[%clk 0:00:19]}  h3 {[%clk 0:00:19]} 29. e6+ {[%clk 0:00:19]}  Ke7 {[%clk 0:00:17]} 30. f6+ {[%clk 0:00:15]}  Kd6 {[%clk 0:00:14]} 31. exf7 {[%clk 0:00:11]}  hxg2+ {[%clk 0:00:15]} 32. Kxg2 {[%clk 0:00:10]}  d4+ {[%clk 0:00:16]} 33. Kg3 {[%clk 0:00:10]}  Rc3+ {[%clk 0:00:13]} 34. Kxg4 {[%clk 0:00:09]}  Qd5 {[%clk 0:00:07]} 35. Qe2 {[%clk 0:00:04]}  Qh5+ {[%clk 0:00:06]} 36. Kf4 {[%clk 0:00:03]}  Qxe2 {[%clk 0:00:07]} 37. Rfe1 {[%clk 0:00:02]}  Qf2+ {[%clk 0:00:07]} 38. Kg5 {[%clk 0:00:01]}  Qxh2 {[%clk 0:00:06]} 39. Kg6 {[%clk 0:00:01]}  Qg3+ {[%clk 0:00:06]} 0-1


[Site "https://www.chess.com"]

[Event "Titled Tuesday Blitz April 4 Late 2023"]
[White "Vargas, Mauricio"]
[Black "Smith, Garrett L"]
[WhiteFideId "4404572"]
[BlackFideId "2024829"]
[WhiteElo "1998"]
[BlackElo "2316"]
[Result "0-1"]
[Round "05"]
[TimeControl "180+2"]
[Date "2023.04.04"]
[WhiteClock "0:00:04"]
[BlackClock "0:00:41"]

1. e4 {[%clk 0:02:09]}  c5 {[%clk 0:02:15]} 2. Qe2 {[%clk 0:02:05]}  Nc6 {[%clk 0:02:15]} 3. g3 {[%clk 0:02:05]}  g6 {[%clk 0:02:15]} 4. c3 {[%clk 0:02:04]}  Bg7 {[%clk 0:02:14]} 5. Bg2 {[%clk 0:02:03]}  e5 {[%clk 0:02:15]} 6. d3 {[%clk 0:02:00]}  Nge7 {[%clk 0:02:15]} 7. f4 {[%clk 0:02:00]}  d6 {[%clk 0:02:14]} 8. Nf3 {[%clk 0:02:00]}  O-O {[%clk 0:02:13]} 9. O-O {[%clk 0:01:59]}  f5 {[%clk 0:02:06]} 10. Ng5 {[%clk 0:01:41]}  h6 {[%clk 0:02:05]} 11. Nf3 {[%clk 0:01:37]}  Be6 {[%clk 0:02:03]} 12. Na3 {[%clk 0:01:28]}  Qd7 {[%clk 0:01:58]} 13. Nh4 {[%clk 0:01:10]}  Rab8 {[%clk 0:01:46]} 14. Kh1 {[%clk 0:01:06]}  Kh7 {[%clk 0:01:41]} 15. Nc2 {[%clk 0:01:04]}  d5 {[%clk 0:01:37]} 16. Ne1 {[%clk 0:00:33]}  b5 {[%clk 0:01:31]} 17. Rf2 {[%clk 0:00:17]}  b4 {[%clk 0:01:24]} 18. Bd2 {[%clk 0:00:15]}  a5 {[%clk 0:01:11]} 19. Qf1 {[%clk 0:00:08]}  a4 {[%clk 0:01:09]} 20. Bf3 {[%clk 0:00:06]}  a3 {[%clk 0:01:05]} 21. b3 {[%clk 0:00:03]}  exf4 {[%clk 0:00:46]} 22. cxb4 {[%clk 0:00:04]}  fxg3 {[%clk 0:00:41]} 0-1


[Site "https://www.chess.com"]

[Event "Titled Tuesday Blitz April 4 Late 2023"]
[White "Vifleemskaia, Svetlana"]
[Black "Jiganchine, Roman"]
[WhiteFideId "4129490"]
[BlackFideId "2603667"]
[WhiteElo "1930"]
[BlackElo "2298"]
[Result "1-0"]
[Round "05"]
[TimeControl "180+2"]
[Date "2023.04.04"]
[WhiteClock "0:01:09"]
[BlackClock "0:00:06"]

1. d4 {[%clk 0:02:58]}  d5 {[%clk 0:02:59]} 2. c4 {[%clk 0:02:57]}  e6 {[%clk 0:02:59]} 3. Nc3 {[%clk 0:02:57]}  Nf6 {[%clk 0:02:59]} 4. cxd5 {[%clk 0:02:57]}  Nxd5 {[%clk 0:02:59]} 5. e4 {[%clk 0:02:56]}  Nxc3 {[%clk 0:02:59]} 6. bxc3 {[%clk 0:02:57]}  c5 {[%clk 0:02:59]} 7. Rb1 {[%clk 0:02:56]}  g6 {[%clk 0:02:44]} 8. Nf3 {[%clk 0:02:55]}  Bg7 {[%clk 0:02:43]} 9. Bb5+ {[%clk 0:02:52]}  Bd7 {[%clk 0:02:38]} 10. O-O {[%clk 0:02:51]}  O-O {[%clk 0:02:37]} 11. Bf4 {[%clk 0:02:31]}  Bxb5 {[%clk 0:01:43]} 12. Rxb5 {[%clk 0:02:29]}  cxd4 {[%clk 0:01:43]} 13. cxd4 {[%clk 0:02:25]}  b6 {[%clk 0:01:43]} 14. Be5 {[%clk 0:02:16]}  Bxe5 {[%clk 0:01:32]} 15. Nxe5 {[%clk 0:02:14]}  Nd7 {[%clk 0:01:29]} 16. Nc6 {[%clk 0:02:10]}  Qc7 {[%clk 0:01:22]} 17. d5 {[%clk 0:01:57]}  Nf6 {[%clk 0:01:05]} 18. Qf3 {[%clk 0:01:48]}  Kg7 {[%clk 0:00:57]} 19. Rc1 {[%clk 0:01:42]}  exd5 {[%clk 0:00:40]} 20. e5 {[%clk 0:01:26]}  Ne4 {[%clk 0:00:27]} 21. Rxd5 {[%clk 0:01:23]}  Nc5 {[%clk 0:00:18]} 22. Qf6+ {[%clk 0:01:19]}  Kh6 {[%clk 0:00:16]} 23. Ne7 {[%clk 0:01:10]}  Qb7 {[%clk 0:00:07]} 24. Nf5+ {[%clk 0:01:09]}  Kh5 {[%clk 0:00:06]} 25. Qh4# {[%clk 0:01:09]} 1-0


[Site "https://www.chess.com"]

[Event "Titled Tuesday Blitz April 4 Late 2023"]
[White "Zampronha, Wladimir Camilo"]
[Black "Kujawski, Adam"]
[WhiteFideId "2103087"]
[BlackFideId "1100920"]
[WhiteElo "2176"]
[BlackElo "2054"]
[Result "0-1"]
[Round "05"]
[TimeControl "180+2"]
[Date "2023.04.04"]
[WhiteClock "0:01:11"]
[BlackClock "0:00:49"]

1. e4 {[%clk 0:02:58]}  e5 {[%clk 0:02:59]} 2. Nf3 {[%clk 0:02:58]}  Nc6 {[%clk 0:03:00]} 3. d4 {[%clk 0:02:59]}  exd4 {[%clk 0:03:00]} 4. Nxd4 {[%clk 0:02:59]}  Bb4+ {[%clk 0:03:00]} 5. c3 {[%clk 0:02:59]}  Bc5 {[%clk 0:03:00]} 6. Be3 {[%clk 0:02:57]}  Bb6 {[%clk 0:02:59]} 7. Nf5 {[%clk 0:02:55]}  g6 {[%clk 0:02:58]} 8. Bxb6 {[%clk 0:02:54]}  axb6 {[%clk 0:02:59]} 9. Ne3 {[%clk 0:02:53]}  Nf6 {[%clk 0:02:59]} 10. Nd2 {[%clk 0:02:53]}  d5 {[%clk 0:02:58]} 11. exd5 {[%clk 0:02:51]}  Nxd5 {[%clk 0:02:58]} 12. Nxd5 {[%clk 0:02:50]}  Qxd5 {[%clk 0:02:58]} 13. Bc4 {[%clk 0:02:51]}  Qe5+ {[%clk 0:02:50]} 14. Qe2 {[%clk 0:02:51]}  Bf5 {[%clk 0:02:38]} 15. O-O {[%clk 0:02:49]}  Qxe2 {[%clk 0:02:36]} 16. Bxe2 {[%clk 0:02:50]}  O-O-O {[%clk 0:02:35]} 17. Nf3 {[%clk 0:02:46]}  Rhe8 {[%clk 0:02:33]} 18. Rfe1 {[%clk 0:02:46]}  Ne5 {[%clk 0:02:18]} 19. Nxe5 {[%clk 0:02:44]}  Rxe5 {[%clk 0:02:18]} 20. g4 {[%clk 0:02:09]}  Be6 {[%clk 0:02:04]} 21. f4 {[%clk 0:01:32]}  Red5 {[%clk 0:01:45]} 22. Bf3 {[%clk 0:01:28]}  Rd2 {[%clk 0:01:39]} 23. Re2 {[%clk 0:01:29]}  Rxe2 {[%clk 0:01:35]} 24. Bxe2 {[%clk 0:01:30]}  Rd2 {[%clk 0:01:35]} 25. Kf1 {[%clk 0:01:24]}  Rxb2 {[%clk 0:01:33]} 26. a3 {[%clk 0:01:22]}  b5 {[%clk 0:01:28]} 27. Rd1 {[%clk 0:01:20]}  Bc4 {[%clk 0:01:27]} 28. Bxc4 {[%clk 0:01:19]}  bxc4 {[%clk 0:01:28]} 29. Rd4 {[%clk 0:01:18]}  Rxh2 {[%clk 0:01:27]} 30. Rxc4 {[%clk 0:01:19]}  b6 {[%clk 0:01:21]} 31. g5 {[%clk 0:01:18]}  Kd7 {[%clk 0:01:14]} 32. Rd4+ {[%clk 0:01:17]}  Ke6 {[%clk 0:01:14]} 33. Rc4 {[%clk 0:01:16]}  c5 {[%clk 0:01:10]} 34. a4 {[%clk 0:01:17]}  Kf5 {[%clk 0:01:07]} 35. a5 {[%clk 0:01:17]}  bxa5 {[%clk 0:01:08]} 36. Rxc5+ {[%clk 0:01:17]}  Kxf4 {[%clk 0:01:08]} 37. Rxa5 {[%clk 0:01:17]}  Rh5 {[%clk 0:01:03]} 38. Ra7 {[%clk 0:01:17]}  Kxg5 {[%clk 0:01:02]} 39. Rxf7 {[%clk 0:01:17]}  Rh4 {[%clk 0:00:59]} 40. Ke2 {[%clk 0:01:16]}  h5 {[%clk 0:00:59]} 41. Kd3 {[%clk 0:01:17]}  Rh1 {[%clk 0:00:53]} 42. c4 {[%clk 0:01:16]}  h4 {[%clk 0:00:53]} 43. Ke2 {[%clk 0:01:14]}  Rc1 {[%clk 0:00:51]} 44. Rc7 {[%clk 0:01:13]}  Kg4 {[%clk 0:00:51]} 45. Kf2 {[%clk 0:01:13]}  g5 {[%clk 0:00:51]} 46. c5 {[%clk 0:01:12]}  h3 {[%clk 0:00:49]} 47. c6 {[%clk 0:01:11]} 0-1


[Site "https://www.chess.com"]

[Event "Titled Tuesday Blitz April 4 Late 2023"]
[White "Senthilkumar, Pranav"]
[Black "Lock, Gavin R"]
[WhiteFideId "2083477"]
[BlackFideId "408646"]
[WhiteElo "1860"]
[BlackElo "2104"]
[Result "1-0"]
[Round "05"]
[TimeControl "180+2"]
[Date "2023.04.04"]
[WhiteClock "0:01:52"]
[BlackClock "0:00:14"]

1. Nf3 {[%clk 0:03:00]}  d5 {[%clk 0:02:59]} 2. d4 {[%clk 0:03:01]}  Nf6 {[%clk 0:02:59]} 3. g3 {[%clk 0:03:00]}  c5 {[%clk 0:02:58]} 4. Bg2 {[%clk 0:03:01]}  Nc6 {[%clk 0:02:59]} 5. O-O {[%clk 0:03:02]}  e6 {[%clk 0:02:59]} 6. c4 {[%clk 0:03:02]}  dxc4 {[%clk 0:03:00]} 7. Na3 {[%clk 0:02:57]}  cxd4 {[%clk 0:02:22]} 8. Nxc4 {[%clk 0:02:54]}  Be7 {[%clk 0:02:22]} 9. Bf4 {[%clk 0:02:52]}  O-O {[%clk 0:02:17]} 10. Nce5 {[%clk 0:02:52]}  Bd7 {[%clk 0:02:07]} 11. Nxd4 {[%clk 0:02:41]}  Nxe5 {[%clk 0:01:47]} 12. Bxe5 {[%clk 0:02:42]}  Qb6 {[%clk 0:01:47]} 13. Qb3 {[%clk 0:02:33]}  Ng4 {[%clk 0:01:35]} 14. Qxb6 {[%clk 0:02:27]}  axb6 {[%clk 0:01:35]} 15. Bc7 {[%clk 0:02:27]}  Bc5 {[%clk 0:01:24]} 16. Nb3 {[%clk 0:02:26]}  Bb5 {[%clk 0:01:20]} 17. Nxc5 {[%clk 0:02:21]}  bxc5 {[%clk 0:01:21]} 18. Rfc1 {[%clk 0:02:19]}  Rac8 {[%clk 0:01:07]} 19. Bd6 {[%clk 0:02:18]}  Rfd8 {[%clk 0:01:06]} 20. Rxc5 {[%clk 0:02:13]}  Rxc5 {[%clk 0:01:04]} 21. Bxc5 {[%clk 0:02:14]}  Ba6 {[%clk 0:00:22]} 22. b4 {[%clk 0:02:05]}  Rd2 {[%clk 0:00:18]} 23. a4 {[%clk 0:02:01]}  Bxe2 {[%clk 0:00:15]} 24. Bxb7 {[%clk 0:01:59]}  Ne5 {[%clk 0:00:14]} 25. a5 {[%clk 0:01:52]} 1-0


[Site "https://www.chess.com"]

[Event "Titled Tuesday Blitz April 4 Late 2023"]
[White "Vujcic, Milena"]
[Black "Vaglio Munoz, Jaime"]
[WhiteFideId "954748"]
[BlackFideId "6500145"]
[WhiteElo "1882"]
[BlackElo "2199"]
[Result "0-1"]
[Round "05"]
[TimeControl "180+2"]
[Date "2023.04.04"]
[WhiteClock "0:00:11"]
[BlackClock "0:00:57"]

1. e4 {[%clk 0:03:00]}  c6 {[%clk 0:02:57]} 2. d4 {[%clk 0:03:00]}  d5 {[%clk 0:02:57]} 3. Nc3 {[%clk 0:03:00]}  g6 {[%clk 0:02:53]} 4. e5 {[%clk 0:02:55]}  h5 {[%clk 0:02:52]} 5. f4 {[%clk 0:02:53]}  Nh6 {[%clk 0:02:49]} 6. Nf3 {[%clk 0:02:52]}  Bg4 {[%clk 0:02:49]} 7. Be3 {[%clk 0:02:46]}  Nf5 {[%clk 0:02:47]} 8. Bf2 {[%clk 0:02:46]}  e6 {[%clk 0:02:46]} 9. Be2 {[%clk 0:02:40]}  Bxf3 {[%clk 0:02:43]} 10. Bxf3 {[%clk 0:02:40]}  Qb6 {[%clk 0:02:43]} 11. Qd2 {[%clk 0:02:20]}  Bb4 {[%clk 0:02:37]} 12. O-O-O {[%clk 0:02:12]}  Qa5 {[%clk 0:02:36]} 13. a3 {[%clk 0:01:56]}  Bxc3 {[%clk 0:02:32]} 14. Qxc3 {[%clk 0:01:57]}  Qxc3 {[%clk 0:02:32]} 15. bxc3 {[%clk 0:01:58]}  Nd7 {[%clk 0:02:32]} 16. Be2 {[%clk 0:01:46]}  b5 {[%clk 0:02:31]} 17. Kb2 {[%clk 0:01:44]}  Nb6 {[%clk 0:02:30]} 18. h3 {[%clk 0:01:36]}  h4 {[%clk 0:02:29]} 19. Rd3 {[%clk 0:01:31]}  Nc4+ {[%clk 0:02:24]} 20. Ka2 {[%clk 0:01:29]}  a5 {[%clk 0:02:22]} 21. g4 {[%clk 0:01:07]}  b4 {[%clk 0:02:20]} 22. gxf5 {[%clk 0:00:58]}  gxf5 {[%clk 0:02:17]} 23. Be1 {[%clk 0:00:52]}  Nxa3 {[%clk 0:02:11]} 24. Bd1 {[%clk 0:00:43]}  Kd7 {[%clk 0:01:57]} 25. Rg1 {[%clk 0:00:42]}  Nc4 {[%clk 0:01:47]} 26. Kb1 {[%clk 0:00:29]}  Rhb8 {[%clk 0:01:42]} 27. cxb4 {[%clk 0:00:25]}  axb4 {[%clk 0:01:42]} 28. Rb3 {[%clk 0:00:24]}  Ra4 {[%clk 0:01:38]} 29. Be2 {[%clk 0:00:21]}  Rba8 {[%clk 0:01:37]} 30. Kc1 {[%clk 0:00:18]}  Ra1+ {[%clk 0:01:28]} 31. Rb1 {[%clk 0:00:17]}  Rxb1+ {[%clk 0:01:26]} 32. Kxb1 {[%clk 0:00:18]}  Ra3 {[%clk 0:01:18]} 33. Bxc4 {[%clk 0:00:17]}  dxc4 {[%clk 0:01:17]} 34. Bxb4 {[%clk 0:00:17]}  Rxh3 {[%clk 0:01:17]} 35. Bd2 {[%clk 0:00:17]}  Rh2 {[%clk 0:01:16]} 36. Kc1 {[%clk 0:00:17]}  h3 {[%clk 0:01:14]} 37. c3 {[%clk 0:00:16]}  c5 {[%clk 0:01:12]} 38. Be1 {[%clk 0:00:16]}  Kc6 {[%clk 0:01:11]} 39. Bg3 {[%clk 0:00:16]}  Ra2 {[%clk 0:01:09]} 40. Kb1 {[%clk 0:00:15]}  Re2 {[%clk 0:01:08]} 41. Rh1 {[%clk 0:00:15]}  Re3 {[%clk 0:01:06]} 42. Be1 {[%clk 0:00:15]}  cxd4 {[%clk 0:01:04]} 43. cxd4 {[%clk 0:00:15]}  Kd5 {[%clk 0:01:05]} 44. Bd2 {[%clk 0:00:15]}  Rd3 {[%clk 0:01:04]} 45. Kc2 {[%clk 0:00:16]}  Rg3 {[%clk 0:01:03]} 46. Ra1 {[%clk 0:00:14]}  Kxd4 {[%clk 0:01:02]} 47. Rh1 {[%clk 0:00:13]}  c3 {[%clk 0:01:01]} 48. Bc1 {[%clk 0:00:12]}  Rg2+ {[%clk 0:01:01]} 49. Kb3 {[%clk 0:00:13]}  h2 {[%clk 0:01:01]} 50. Rd1+ {[%clk 0:00:12]}  Ke4 {[%clk 0:01:01]} 51. Kxc3 {[%clk 0:00:12]}  Rg1 {[%clk 0:01:00]} 52. Rd4+ {[%clk 0:00:12]}  Kf3 {[%clk 0:01:00]} 53. Rd3+ {[%clk 0:00:13]}  Kg4 {[%clk 0:01:00]} 54. Be3 {[%clk 0:00:11]}  h1=Q {[%clk 0:00:57]} 0-1


[Site "https://www.chess.com"]